fUST/lending_fUST_20250928
["ID","MTS","AMOUNT","RATE_DAILY","PERIOD"]
[388055625,1758994290786,-634.09,0.00036986,9]
[388055626,1758994290796,-1169.77,0.00036986,9]
[388055627,1758994290805,-480.0,0.00036986,9]
[388055628,1758994290815,-633.36,0.00036986,9]
[388055629,1758994290825,-480.0,0.00036986,9]
[388055630,1758994290834,-2365.78,0.00036986,9]
[388055631,1758994290844,-480.0,0.00036986,9]
[388055632,1758994290854,-480.0,0.00036986,9]
[388055633,1758994290863,-480.0,0.00036986,9]
[388055634,1758994290873,-480.0,0.00036986,9]
[388055635,1758994290882,-480.0,0.00036986,9]
[388055636,1758994290892,-814.78,0.00036986,9]
[388055637,1758994290901,-640.81,0.00036986,9]
[388055638,1758994290911,-908.9,0.00036986,9]
[388055639,1758994290920,-157.77890795,0.00036986,9]
[388055640,1758994290931,-732.25,0.00036986,9]
[388055641,1758994290941,-480.0,0.00036986,9]
[388055642,1758994290951,-545.09,0.00036986,9]
[388055643,1758994290961,-1247.12,0.00036986,9]
[388055644,1758994290971,-480.0,0.00036986,9]
[388055645,1758994290980,-480.0,0.00036986,9]
[388055646,1758994290990,-480.0,0.00036986,9]
[388055647,1758994290999,-480.0,0.00036986,9]
[388055648,1758994291009,-480.0,0.00036986,9]
[388055649,1758994291019,-480.0,0.00036986,9]
[388055650,1758994291029,-480.0,0.00036986,9]
[388055651,1758994291039,-480.0,0.00036986,9]
[388055652,1758994291048,-480.0,0.00036986,9]
[388055653,1758994291058,-480.0,0.00036986,9]
[388055654,1758994291068,-480.0,0.00036986,9]
[388055655,1758994291078,-480.0,0.00036986,9]
[388055656,1758994291087,-480.0,0.00036986,9]
[388055657,1758994291097,-480.0,0.00036986,9]
[388055658,1758994291106,-480.0,0.00036986,9]
[388055659,1758994291116,-480.0,0.00036986,9]
[388055660,1758994291126,-1220.21,0.00036986,9]
[388055661,1758994291135,-600.0,0.00036986,9]
[388055662,1758994291144,-694.24,0.00036986,9]
[388055663,1758994291154,-480.0,0.00036986,9]
[388055664,1758994291164,-230.69309321,0.00036986,9]
[388055665,1758994291173,-480.0,0.00036986,9]
[388055666,1758994291182,-480.0,0.00036986,9]
[388055667,1758994291192,-480.0,0.00036986,9]
[388055668,1758994291202,-480.0,0.00036986,9]
[388055669,1758994291211,-480.0,0.00036986,9]
[388055670,1758994291221,-559.05,0.00036986,9]
[388055671,1758994291230,-3248.1,0.00036986,9]
[388055672,1758994291240,-480.0,0.00036986,9]
[388055673,1758994291249,-673.8,0.00036986,9]
[388055674,1758994291258,-480.0,0.00036986,9]
[388055675,1758994291268,-480.0,0.00036986,9]
[388055676,1758994291278,-480.0,0.00036986,9]
[388055677,1758994291287,-480.0,0.00036986,9]
[388055678,1758994291297,-480.0,0.00036986,9]
[388055679,1758994291307,-579.8,0.00036986,9]
[388055680,1758994291316,-1466.3,0.00036986,9]
[388055681,1758994291325,-2409.52,0.00036986,9]
[388055682,1758994291334,-583.63,0.00036986,9]
[388055683,1758994291344,-1295.32,0.00036986,9]
[388055684,1758994291354,-480.0,0.00036986,9]
[388055685,1758994291363,-480.0,0.00036986,9]
[388055686,1758994291374,-480.0,0.00036986,9]
[388055687,1758994291383,-1635.5,0.00036986,9]
[388055688,1758994291393,-480.0,0.00036986,9]
[388055689,1758994291402,-480.0,0.00036986,9]
[388055690,1758994291411,-773.73,0.00036986,9]
[388055691,1758994291421,-819.06,0.00036986,9]
[388055692,1758994291431,-480.0,0.00036986,9]
[388055693,1758994291441,-895.09,0.00036986,9]
[388055694,1758994291455,-298.84,0.00036986,9]
[388055695,1758994291465,-480.0,0.00036986,9]
[388055696,1758994291475,-1762.78,0.00036986,9]
[388055697,1758994291485,-480.0,0.00036986,9]
[388055698,1758994291494,-480.0,0.00036986,9]
[388055699,1758994291504,-1913.8,0.00036986,9]
[388055700,1758994291513,-480.0,0.00036986,9]
[388055701,1758994291523,-1077.66,0.00036986,9]
[388055702,1758994291532,-2365.15,0.00036986,9]
[388055703,1758994291542,-3621.43,0.00036986,9]
[388055704,1758994291552,-480.0,0.00036986,9]
[388055705,1758994291562,-480.0,0.00036986,9]
[388055706,1758994291571,-480.0,0.00036986,9]
[388055707,1758994291581,-480.0,0.00036986,9]
[388055708,1758994291590,-569.51,0.00036986,9]
[388055709,1758994291600,-783.09,0.00036986,9]
[388055710,1758994291833,-5851.91,0.00036986,9]
[388055711,1758994291843,-480.0,0.00036986,9]
[388055712,1758994291853,-3217.73,0.00036986,9]
[388055713,1758994291863,-2376.82,0.00036986,9]
[388055714,1758994291874,-1417.32,0.00036986,9]
[388055715,1758994291883,-785.41,0.00036986,9]
[388055716,1758994291893,-480.0,0.00036986,9]
[388055717,1758994291902,-480.0,0.00036986,9]
[388055718,1758994291912,-1530.06,0.00036986,9]
[388055719,1758994291922,-480.0,0.00036986,9]
[388055720,1758994291931,-510.43362431,0.00036986,9]
[388055721,1758994291941,-2125.03,0.00036986,9]
[388055722,1758994291951,-480.0,0.00036986,9]
[388055723,1758994291960,-480.0,0.00036986,9]
[388055724,1758994291970,-753.61,0.00036986,9]
[388055725,1758994291979,-662.5,0.00036986,9]
[388055726,1758994291989,-480.0,0.00036986,9]
[388055727,1758994291998,-480.0,0.00036986,9]
[388055728,1758994292008,-480.0,0.00036986,9]
[388055729,1758994292018,-1721.27,0.00036986,9]
[388055730,1758994292027,-611.21,0.00036986,9]
[388055731,1758994292036,-637.19,0.00036986,9]
[388055732,1758994292046,-3545.61,0.00036986,9]
[388055733,1758994292056,-11763.28,0.00036986,9]
[388055734,1758994292065,-480.0,0.00036986,9]
[388055735,1758994292075,-1271.8,0.00036986,9]
[388055736,1758994292084,-1408.28,0.00036986,9]
[388055737,1758994292095,-11816.93,0.00036986,9]
[388055738,1758994292104,-2708.81,0.00036986,9]
[388055739,1758994292113,-3808.87,0.00036986,9]
[388055740,1758994292124,-480.0,0.00036986,9]
[388055741,1758994292134,-480.0,0.00036986,9]
[388055742,1758994292143,-3600.11,0.00036986,9]
[388055743,1758994292153,-720.5,0.00036986,9]
[388055744,1758994292162,-480.0,0.00036986,9]
[388055745,1758994292172,-480.0,0.00036986,9]
[388055746,1758994292182,-480.0,0.00036986,9]
[388055747,1758994292191,-480.0,0.00036986,9]
[388055748,1758994292201,-5256.05,0.00036986,9]
[388055749,1758994292211,-480.0,0.00036986,9]
[388055750,1758994292220,-480.0,0.00036986,9]
[388055751,1758994292230,-480.0,0.00036986,9]
[388055752,1758994292240,-480.0,0.00036986,9]
[388055753,1758994292249,-480.0,0.00036986,7]
[388055754,1758994292259,-1065.2,0.00036986,9]
[388055755,1758994292268,-7261.54,0.00036986,3]
[388055756,1758994292279,-480.0,0.00036986,9]
[388055757,1758994292288,-7281.49,0.00036986,9]
[388055758,1758994292298,-5503.8,0.00036986,9]
[388055759,1758994292308,-480.0,0.00036986,9]
[388055760,1758994292317,-4195.5,0.00036986,9]
[388055761,1758994292327,-480.0,0.00036986,9]
[388055762,1758994292336,-2557.08,0.00036986,9]
[388055763,1758994292345,-713.43,0.00036986,9]
[388055764,1758994292355,-595.32,0.00036986,9]
[388055765,1758994292364,-1395.04,0.00036986,9]
[388055766,1758994292374,-480.0,0.00036986,9]
[388055767,1758994292383,-1343.26,0.00036986,9]
[388055768,1758994292393,-3339.87,0.00036986,9]
[388055769,1758994292403,-24192.44,0.00036986,9]
[388055770,1758994292412,-660.49,0.00036986,9]
[388055771,1758994292422,-480.0,0.00036986,9]
[388055772,1758994292432,-5132.79,0.00036986,9]
[388055773,1758994292442,-2250.62,0.00036986,9]
[388055774,1758994292451,-480.0,0.00036986,9]
[388055775,1758994292461,-480.0,0.00036986,9]
[388055776,1758994292470,-501.78,0.00036986,9]
[388055777,1758994292479,-480.0,0.00036986,9]
[388055778,1758994292489,-4314.54,0.00036986,9]
[388055779,1758994292499,-3924.9,0.00036986,9]
[388055780,1758994292509,-557.99,0.00036986,9]
[388055781,1758994292519,-873.81,0.00036986,9]
[388055782,1758994292539,-910.08,0.00036986,9]
[388055783,1758994292549,-5902.52,0.00036986,9]
[388055784,1758994292558,-1046.33,0.00036986,9]
[388055785,1758994292567,-655.62,0.00036986,9]
[388055786,1758994292576,-486.86,0.00036986,9]
[388055787,1758994292586,-480.0,0.00036986,9]
[388055788,1758994292602,-2948.89,0.00036986,9]
[388055789,1758994292611,-480.0,0.00036986,9]
[388055790,1758994292620,-480.0,0.00036986,9]
[388055791,1758994292630,-1394.0,0.00036986,9]
[388055792,1758994292640,-781.94,0.00036986,9]
[388055793,1758994292649,-651.68,0.00036986,9]
[388055794,1758994292663,-608.92,0.00036986,9]
[388055795,1758994292673,-6660.0,0.00036986,9]
[388055796,1758994292683,-480.0,0.00036986,9]
[388055797,1758994292693,-480.0,0.00036986,9]
[388055798,1758994292702,-1068.41261255,0.00036986,9]
[388055799,1758994292711,-1085.98,0.00036986,9]
[388055800,1758994292721,-862.6,0.00036986,9]
[388055801,1758994292730,-674.92,0.00036986,9]
[388055802,1758994292739,-480.0,0.00036986,9]
[388055803,1758994292749,-480.0,0.00036986,9]
[388055804,1758994292757,-2220.57,0.00036986,9]
[388055805,1758994292767,-566.96,0.00036986,9]
[388055806,1758994292777,-5679.9,0.00036986,9]
[388055807,1758994292786,-480.0,0.00036986,9]
[388055808,1758994292795,-480.0,0.00036986,9]
[388055809,1758994292804,-676.52,0.00036986,9]
[388055810,1758994292814,-535.04,0.00036986,9]
[388055811,1758994292823,-422.12906466,0.00036986,9]
[388055812,1758994292833,-480.0,0.00036986,9]
[388055813,1758994292842,-480.0,0.00036986,9]
[388055814,1758994292852,-480.0,0.00036986,9]
[388055815,1758994292862,-480.0,0.00036986,9]
[388055816,1758994292872,-6540.42,0.00036986,9]
[388055817,1758994292882,-480.0,0.00036986,9]
[388055818,1758994292891,-480.0,0.00036986,9]
[388055819,1758994292901,-1430.6,0.00036986,9]
[388055820,1758994292910,-480.0,0.00036986,9]
[388055821,1758994292919,-3400.91,0.00036986,9]
[388055822,1758994292929,-480.0,0.00036986,9]
[388055823,1758994292938,-1039.32,0.00036986,9]
[388055824,1758994292948,-480.0,0.00036986,9]
[388055825,1758994292957,-480.0,0.00036986,9]
[388055826,1758994292967,-590.07,0.00036986,9]
[388055827,1758994292977,-2165.68,0.00036986,9]
[388055828,1758994292986,-585.9,0.00036986,9]
[388055829,1758994292996,-480.0,0.00036986,9]
[388055830,1758994293005,-480.0,0.00036986,9]
[388055831,1758994293014,-8879.65,0.00036986,9]
[388055832,1758994293024,-480.0,0.00036986,9]
[388055833,1758994293034,-480.0,0.00036986,9]
[388055834,1758994293043,-480.0,0.00036986,9]
[388055835,1758994293052,-12414.04,0.00036986,9]
[388055836,1758994293061,-1103.65,0.00036986,9]
[388055837,1758994293070,-11922.12,0.00036986,9]
[388055838,1758994293080,-480.0,0.00036986,9]
[388055839,1758994293089,-480.0,0.00036986,9]
[388055840,1758994293099,-500.0,0.00036986,9]
[388055841,1758994293108,-2313.45,0.00036986,9]
[388055842,1758994293117,-480.0,0.00036986,9]
[388055843,1758994293127,-480.0,0.00036986,9]
[388055844,1758994293136,-3440.58,0.00036986,9]
[388055845,1758994293144,-667.79,0.00036986,9]
[388055846,1758994293154,-480.0,0.00036986,9]
[388055847,1758994293163,-1943.98,0.00036986,9]
[388055848,1758994293172,-724.44,0.00036986,9]
[388055849,1758994293181,-480.0,0.00036986,9]
[388055850,1758994293191,-1351.09,0.00036986,9]
[388055851,1758994293200,-902.22,0.00036986,9]
[388055852,1758994293209,-859.97,0.00036986,9]
[388055853,1758994293218,-970.85,0.00036986,9]
[388055854,1758994293227,-652.35,0.00036986,9]
[388055855,1758994293237,-480.0,0.00036986,9]
[388055856,1758994293247,-480.0,0.00036986,9]
[388055857,1758994293256,-3231.52,0.00036986,9]
[388055858,1758994293265,-5847.17,0.00036986,9]
[388055859,1758994293275,-5233.48,0.00036986,9]
[388055860,1758994293284,-2534.52,0.00036986,9]
[388055861,1758994293294,-1579.73,0.00036986,9]
[388055862,1758994293304,-1399.8,0.00036986,9]
[388055863,1758994293312,-480.0,0.00036986,9]
[388055864,1758994293322,-509.81,0.00036986,9]
[388055865,1758994293331,-480.0,0.00036986,9]
[388055866,1758994293340,-480.0,0.00036986,9]
[388055867,1758994293350,-3280.61,0.00036986,9]
[388055868,1758994293359,-1717.88,0.00036986,9]
[388055869,1758994293368,-501.77,0.00036986,9]
[388055870,1758994293378,-1393.31,0.00036986,9]
[388055871,1758994293387,-480.0,0.00036986,9]
[388055872,1758994293396,-480.0,0.00036986,9]
[388055873,1758994293405,-480.0,0.00036986,9]
[388055874,1758994293415,-4155.87,0.00036986,9]
[388055875,1758994293424,-480.0,0.00036986,9]
[388055876,1758994293434,-1668.27,0.00036986,9]
[388055877,1758994293443,-480.0,0.00036986,9]
[388055878,1758994293452,-480.0,0.00036986,9]
[388055879,1758994293461,-2258.02,0.00036986,9]
[388055880,1758994293471,-483.3846755,0.00036986,9]
[388055881,1758994293480,-1790.05,0.00036986,9]
[388055882,1758994293490,-480.0,0.00036986,9]
[388055883,1758994293499,-480.0,0.00036986,9]
[388055884,1758994293507,-480.0,0.00036986,9]
[388055885,1758994293517,-480.0,0.00036986,9]
[388055886,1758994293526,-1049.63,0.00036986,9]
[388055887,1758994293535,-4211.13,0.00036986,9]
[388055888,1758994293544,-972.4,0.00036986,9]
[388055889,1758994293553,-1822.75,0.00036986,9]
[388055890,1758994293562,-825.06,0.00036986,9]
[388055891,1758994293572,-1686.63,0.00036986,9]
[388055892,1758994293581,-480.0,0.00036986,9]
[388055893,1758994293590,-1363.95,0.00036986,9]
[388055894,1758994293600,-480.0,0.00036986,9]
[388055895,1758994293609,-480.0,0.00036986,9]
[388055896,1758994293619,-732.67,0.00036986,9]
[388055897,1758994293630,-481.53,0.00036986,9]
[388055898,1758994293639,-480.0,0.00036986,9]
[388055899,1758994293648,-480.0,0.00036986,9]
[388055900,1758994293663,-480.0,0.00036986,9]
[388055901,1758994293672,-990.05,0.00036986,9]
[388055902,1758994293685,-480.0,0.00036986,9]
[388055903,1758994293695,-480.0,0.00036986,9]
[388055904,1758994293704,-1605.12,0.00036986,9]
[388055905,1758994293713,-480.0,0.00036986,9]
[388055906,1758994293723,-480.0,0.00036986,9]
[388055907,1758994293733,-244.05876555,0.00037,120]
[388055908,1758994293743,-463.0,0.0003702,5]
[388055909,1758994293752,-600.0,0.00037052,2]
[388055910,1758994293760,-194.25,0.000372,2]
[388055911,1758994293770,-151.0,0.00037211,30]
[388055912,1758994293779,-480.0,0.0003726,9]
[388055913,1758994293788,-480.0,0.0003726,9]
[388055914,1758994293797,-1084.97,0.0003726,9]
[388055915,1758994293806,-480.0,0.0003726,9]
[388055916,1758994293815,-315.08539665,0.0003726,9]
[388055917,1758994293824,-480.0,0.0003726,9]
[388055918,1758994293834,-480.0,0.0003726,9]
[388055919,1758994293843,-493.36962258,0.0003726,9]
[388055920,1758994293853,-480.0,0.0003726,9]
[388055921,1758994293862,-480.0,0.0003726,9]
[388055922,1758994293871,-480.0,0.0003726,9]
[388055923,1758994293882,-480.0,0.0003726,9]
[388055924,1758994293891,-480.0,0.0003726,9]
[388055925,1758994293900,-480.0,0.0003726,9]
[388055926,1758994293909,-480.0,0.0003726,9]
[388055927,1758994293918,-480.0,0.0003726,9]
[388055928,1758994293927,-480.0,0.0003726,9]
[388055929,1758994293935,-480.0,0.0003726,9]
[388055930,1758994293945,-480.0,0.0003726,9]
[388055931,1758994293955,-789.69,0.0003726,9]
[388055932,1758994293964,-480.0,0.0003726,9]
[388055933,1758994293973,-192.61238389,0.0003726,9]
[388055934,1758994293983,-480.0,0.0003726,9]
[388055935,1758994293992,-833.25,0.0003726,9]
[388055936,1758994294002,-211.51413421,0.0003726,9]
[388055937,1758994294011,-480.0,0.0003726,9]
[388055938,1758994294020,-480.0,0.0003726,9]
[388055939,1758994294029,-375.65729245,0.0003726,9]
[388055940,1758994294039,-480.0,0.0003726,9]
[388055941,1758994294048,-793.85,0.0003726,9]
[388055942,1758994294057,-480.0,0.0003726,9]
[388055943,1758994294067,-480.0,0.0003726,9]
[388055944,1758994294076,-243.25930949,0.0003726,9]
[388055945,1758994294085,-480.0,0.0003726,9]
[388055946,1758994294094,-480.0,0.0003726,9]
[388055947,1758994294103,-480.0,0.0003726,9]
[388055948,1758994294113,-653.79,0.0003726,9]
[388055949,1758994294123,-480.0,0.0003726,9]
[388055950,1758994294132,-579.13,0.0003726,9]
[388055951,1758994294142,-480.0,0.0003726,9]
[388055952,1758994294151,-480.0,0.0003726,9]
[388055953,1758994294160,-480.0,0.0003726,9]
[388055954,1758994294169,-620.25,0.0003726,9]
[388055955,1758994294178,-2059.03,0.0003726,9]
[388055956,1758994294187,-480.0,0.0003726,9]
[388055957,1758994294198,-1268.43,0.0003726,9]
[388055958,1758994294207,-480.0,0.0003726,9]
[388055959,1758994294217,-606.29,0.0003726,9]
[388055960,1758994294226,-480.0,0.0003726,9]
[388055961,1758994294235,-489.34101783,0.0003726,9]
[388055962,1758994294245,-1560.16,0.0003726,9]
[388055963,1758994294254,-1351.46,0.0003726,9]
[388055964,1758994294263,-516.73,0.0003726,9]
[388055965,1758994294272,-480.0,0.0003726,9]
[388055966,1758994294281,-480.0,0.0003726,9]
[388055967,1758994294290,-1843.25,0.0003726,9]
[388055968,1758994294299,-842.63,0.0003726,9]
[388055969,1758994294308,-693.7,0.0003726,9]
[388055970,1758994294319,-1170.81,0.0003726,9]
[388055971,1758994294329,-244.31270796,0.0003726,9]
[388055972,1758994294339,-480.0,0.0003726,9]
[388055973,1758994294348,-519.15,0.0003726,9]
[388055974,1758994294357,-480.0,0.0003726,9]
[388055975,1758994294367,-551.54,0.0003726,9]
[388055976,1758994294376,-480.0,0.0003726,9]
[388055977,1758994294385,-801.56,0.0003726,9]
[388055978,1758994294394,-480.0,0.0003726,9]
[388055979,1758994294404,-480.0,0.0003726,9]
[388055980,1758994294414,-480.0,0.0003726,9]
[388055981,1758994294423,-611.79,0.0003726,9]
[388055982,1758994294433,-480.0,0.0003726,9]
[388055983,1758994294443,-480.0,0.0003726,9]
[388055984,1758994294452,-480.0,0.0003726,9]
[388055985,1758994294462,-639.55,0.0003726,9]
[388055986,1758994294472,-480.0,0.0003726,9]
[388055987,1758994294481,-480.0,0.0003726,9]
[388055988,1758994294493,-154.62920593,0.0003726,9]
[388055989,1758994294502,-480.0,0.0003726,9]
[388055990,1758994294511,-619.33,0.0003726,9]
[388055991,1758994294522,-480.0,0.0003726,9]
[388055992,1758994294531,-480.0,0.0003726,9]
[388055993,1758994294541,-480.0,0.0003726,9]
[388055994,1758994294551,-1155.59,0.0003726,9]
[388055995,1758994294563,-260.74643391,0.0003726,9]
[388055996,1758994294573,-857.23,0.0003726,9]
[388055997,1758994294583,-480.0,0.0003726,9]
[388055998,1758994294593,-480.0,0.0003726,9]
[388055999,1758994294604,-542.03491506,0.0003726,9]
[388056000,1758994294614,-480.0,0.0003726,9]
[388056001,1758994294624,-480.0,0.0003726,9]
[388056002,1758994294634,-556.43830024,0.0003726,9]
[388056003,1758994294644,-480.0,0.0003726,9]
[388056004,1758994294658,-282.47934986,0.0003726,9]
[388056005,1758994294668,-480.0,0.0003726,9]
[388056006,1758994294678,-480.0,0.0003726,9]
[388056007,1758994294688,-480.0,0.0003726,9]
[388056008,1758994294698,-480.0,0.0003726,9]
[388056009,1758994294708,-988.57,0.0003726,9]
[388056010,1758994294718,-480.0,0.0003726,9]
[388056011,1758994294728,-480.0,0.0003726,9]
[388056012,1758994294738,-480.0,0.0003726,9]
[388056013,1758994294747,-480.0,0.0003726,9]
[388056014,1758994294756,-806.8,0.0003726,9]
[388056015,1758994294765,-480.0,0.0003726,9]
[388056016,1758994294774,-480.0,0.0003726,9]
[388056017,1758994294784,-480.0,0.0003726,9]
[388056018,1758994294794,-728.19,0.0003726,9]
[388056019,1758994294804,-480.0,0.0003726,9]
[388056020,1758994294816,-1199.9,0.0003726,9]
[388056021,1758994294825,-521.83,0.0003726,9]
[388056022,1758994294834,-934.81,0.0003726,9]
[388056023,1758994294843,-480.0,0.0003726,9]
[388056024,1758994294852,-671.16,0.0003726,9]
[388056025,1758994294862,-844.89,0.0003726,9]
[388056026,1758994294871,-924.28,0.0003726,9]
[388056027,1758994294880,-480.0,0.0003726,9]
[388056028,1758994294889,-480.0,0.0003726,9]
[388056029,1758994294898,-1097.09,0.0003726,9]
[388056030,1758994294908,-480.0,0.0003726,7]
[388056031,1758994294917,-1092.41,0.0003726,9]
[388056032,1758994294926,-541.61,0.0003726,9]
[388056033,1758994294936,-2302.64,0.0003726,9]
[388056034,1758994294945,-700.03,0.0003726,9]
[388056035,1758994294955,-1242.26,0.0003726,9]
[388056036,1758994294964,-480.0,0.0003726,9]
[388056037,1758994294974,-916.57,0.0003726,9]
[388056038,1758994294983,-2930.19,0.0003726,9]
[388056039,1758994294992,-480.0,0.0003726,9]
[388056040,1758994295001,-480.0,0.0003726,9]
[388056041,1758994295010,-881.1,0.0003726,9]
[388056042,1758994295019,-480.0,0.0003726,9]
[388056043,1758994295029,-413.06434323,0.0003726,9]
[388056044,1758994295039,-922.29,0.0003726,9]
[388056045,1758994295048,-480.0,0.0003726,9]
[388056046,1758994295058,-480.0,0.0003726,9]
[388056047,1758994295067,-480.0,0.0003726,9]
[388056048,1758994295077,-1075.35,0.0003726,9]
[388056049,1758994295087,-1002.1,0.0003726,9]
[388056050,1758994295097,-614.74,0.0003726,9]
[388056051,1758994295107,-480.0,0.0003726,9]
[388056052,1758994295116,-1314.53,0.0003726,9]
[388056053,1758994295126,-1647.96,0.0003726,9]
[388056054,1758994295135,-480.0,0.0003726,9]
[388056055,1758994295145,-480.0,0.0003726,9]
[388056056,1758994295155,-480.0,0.0003726,9]
[388056057,1758994295164,-918.52,0.0003726,9]
[388056058,1758994295175,-541.29,0.0003726,9]
[388056059,1758994295184,-1637.11,0.0003726,9]
[388056060,1758994295194,-1000.0,0.0003726,9]
[388056061,1758994295203,-480.0,0.0003726,9]
[388056062,1758994295212,-480.0,0.0003726,9]
[388056063,1758994295222,-1335.18,0.0003726,9]
[388056064,1758994295233,-531.39,0.0003726,9]
[388056065,1758994295241,-711.96,0.0003726,9]
[388056066,1758994295251,-200.0,0.0003726,9]
[388056067,1758994295260,-1092.25,0.0003726,9]
[388056068,1758994295270,-480.0,0.0003726,9]
[388056069,1758994295279,-923.57,0.0003726,9]
[388056070,1758994295289,-480.0,0.0003726,9]
[388056071,1758994295299,-480.0,0.0003726,9]
[388056072,1758994295308,-480.0,0.0003726,9]
[388056073,1758994295317,-5451.79,0.0003726,9]
[388056074,1758994295328,-480.0,0.0003726,9]
[388056075,1758994295337,-1083.01,0.0003726,9]
[388056076,1758994295347,-1357.77,0.0003726,9]
[388056077,1758994295357,-480.0,0.0003726,9]
[388056078,1758994295367,-1344.59,0.0003726,9]
[388056079,1758994295377,-480.0,0.0003726,9]
[388056080,1758994295395,-480.0,0.0003726,9]
[388056081,1758994295406,-2678.73,0.0003726,9]
[388056082,1758994295415,-480.0,0.0003726,9]
[388056083,1758994295425,-702.0,0.0003726,9]
[388056084,1758994295435,-480.0,0.0003726,9]
[388056085,1758994295445,-480.0,0.0003726,9]
[388056086,1758994295454,-480.0,0.0003726,9]
[388056087,1758994295464,-543.96,0.0003726,9]
[388056088,1758994295474,-480.0,0.0003726,9]
[388056089,1758994295484,-774.73,0.0003726,9]
[388056090,1758994295494,-593.84,0.0003726,9]
[388056091,1758994295503,-480.0,0.0003726,9]
[388056092,1758994295513,-480.0,0.0003726,9]
[388056093,1758994295523,-1672.18,0.0003726,9]
[388056094,1758994295532,-3764.15,0.0003726,9]
[388056095,1758994295542,-824.17,0.0003726,9]
[388056096,1758994295551,-480.0,0.0003726,9]
[388056097,1758994295561,-480.0,0.0003726,9]
[388056098,1758994295570,-480.0,0.0003726,9]
[388056099,1758994295580,-1635.38,0.0003726,9]
[388056100,1758994295589,-480.0,0.0003726,9]
[388056101,1758994295598,-1641.95,0.0003726,9]
[388056102,1758994295608,-480.0,0.0003726,9]
[388056103,1758994295618,-2067.34,0.0003726,9]
[388056104,1758994295628,-480.0,0.0003726,9]
[388056105,1758994295638,-1427.52,0.0003726,9]
[388056106,1758994295648,-480.0,0.0003726,9]
[388056107,1758994295662,-480.0,0.0003726,9]
[388056108,1758994295671,-3405.97,0.0003726,9]
[388056109,1758994295681,-708.47,0.0003726,9]
[388056110,1758994295691,-634.2,0.0003726,9]
[388056111,1758994295702,-694.12,0.0003726,9]
[388056112,1758994295712,-2636.4,0.0003726,9]
[388056113,1758994295722,-480.0,0.0003726,9]
[388056114,1758994295733,-1654.9,0.0003726,9]
[388056115,1758994295743,-2287.25,0.0003726,9]
[388056116,1758994295753,-652.19,0.0003726,9]
[388056117,1758994295763,-480.0,0.0003726,9]
[388056118,1758994295772,-499.86885365,0.0003726,9]
[388056119,1758994295782,-3119.71,0.0003726,9]
[388056120,1758994295791,-480.0,0.0003726,9]
[388056121,1758994295801,-480.0,0.0003726,9]
[388056122,1758994295811,-480.0,0.0003726,9]
[388056123,1758994295820,-487.8,0.0003726,9]
[388056124,1758994296034,-480.0,0.0003726,9]